bitfinex/quotes_ETHUSD_20250715
["timestamp","ask_amount","ask_price","bid_price","bid_amount"]
[1752569592119,5.2822,2977.8,2977.7,3.35829667]
[1752569594468,5.2822,2977.8,2977.5,6.48406702]
[1752569594758,5.2822,2977.8,2977.7,3.35829667]
[1752569595366,5.7489,2977.8,2977.7,3.35829667]
[1752569595859,5.2822,2977.8,2977.7,3.35829667]
[1752569599089,5.2822,2977.8,2977.7,9.84236369]
[1752569602676,5.2812,2977.8,2977.7,11.19483086]
[1752569603488,5.2812,2977.8,2977.7,9.84236369]
[1752569603709,0.1692,2977.8,2977.7,9.84236369]
[1752569604006,5.2802,2977.8,2977.7,10.31286369]
[1752569604305,8.063,2978.2,2978.1,3.3578456]
[1752569604485,13.174,2978.2,2978.1,9.84191262]
[1752569604685,8.063,2978.2,2978.1,9.84191262]
[1752569604881,13.3412,2978.2,2978.1,9.84191262]
[1752569606606,8.2302,2978.2,2978.1,9.84191262]
[1752569606773,13.3412,2978.2,2978.1,9.84191262]
[1752569606965,13.3412,2978.2,2978.1,10.31241262]
[1752569609887,13.3412,2978.2,2978.1,9.84191262]
[1752569610084,13.3412,2978.2,2978.1,3.3578456]
[1752569610329,15.14212,2978.2,2978.1,3.3578456]
[1752569610475,13.8078,2978.2,2978.1,3.3578456]
[1752569611122,14.5603,2978.2,2978.0,3.35787866]
[1752569611324,0.4666,2978.1,2978.0,3.35795836]
[1752569612286,0.4666,2978.1,2977.8,3.35812636]
[1752569612612,5.11,2978.0,2977.9,3.3580318]
[1752569612913,5.5766,2978.0,2977.9,3.3580318]
[1752569627376,1.2211,2978.2,2978.1,3.3578456]
[1752569627753,6.3301,2978.2,2978.1,3.3578456]
[1752569630505,0.4686,2978.2,2978.1,3.3578456]
[1752569630799,5.11,2978.2,2978.1,3.3578456]
[1752569632101,5.2772,2978.2,2978.1,3.3578456]
[1752569638511,5.2762,2978.2,2978.1,3.3578456]
[1752569639908,0.1692,2978.2,2978.1,3.3578456]
[1752569640214,5.2762,2978.2,2978.1,3.3578456]
[1752569640913,0.1692,2978.2,2978.1,3.3578456]
[1752569641085,5.2762,2978.2,2978.1,3.3578456]
[1752569641746,0.1692,2978.2,2978.1,3.3578456]
[1752569641950,5.109,2978.2,2978.1,5.47570991]
[1752569642246,5.109,2978.2,2978.1,5.44213146]
[1752569642448,5.109,2978.2,2978.1,5.00173146]
[1752569645064,5.109,2978.2,2978.1,4.67783146]
[1752569645240,5.109,2978.2,2978.1,3.3578456]
[1752569650696,5.5407,2978.2,2978.1,3.3578456]
[1752569650996,5.7079,2978.2,2978.1,3.3578456]
[1752569658018,5.7079,2978.2,2977.8,3.35916712]
[1752569658202,1.1833,2978.1,2977.8,0.001]
[1752569658373,5.75095,2978.0,2977.8,0.001]
[1752569658573,6.18265,2978.0,2977.8,0.001]
[1752569658816,0.4317,2977.9,2977.8,0.001]
[1752569659014,1.2067,2977.9,2977.8,0.001]
[1752569660609,1.2067,2977.9,2977.8,3.35918389]
[1752569661270,6.3117,2977.9,2977.8,3.35918389]
[1752569662116,0.7627,2978.1,2977.9,3.35799829]
[1752569662413,5.5367,2978.0,2977.9,3.35799829]
[1752569662912,0.1672,2977.9,2977.8,9.8432151]
[1752569663214,0.5989,2977.9,2977.8,3.35914808]
[1752569663572,5.7039,2977.9,2977.8,3.35914808]
[1752569664717,0.5989,2977.9,2977.8,3.35914808]
[1752569665013,5.7039,2977.9,2977.8,3.35914808]
[1752569665176,5.2722,2977.9,2977.8,3.35914808]
[1752569666021,0.1672,2977.9,2977.8,3.35914808]
[1752569666185,0.1672,2977.9,2977.8,4.75572831]
[1752569666421,5.2722,2977.9,2977.8,5.19612831]
[1752569667648,0.1672,2977.9,2977.8,5.19612831]
[1752569667854,0.1692,2978.2,2978.1,3.3578456]
[1752569668035,5.2742,2978.2,2978.1,3.3578456]
[1752569668354,5.7059,2978.2,2978.1,3.3578456]
[1752569670571,5.7059,2978.2,2978.0,3.3579066]
[1752569670866,1.2119,2978.1,2977.8,0.001]
[1752569671015,5.8712,2978.0,2977.8,0.001]
[1752569671209,0.7672,2977.9,2977.8,0.001]
[1752569671452,4.56997112,2977.9,2977.8,0.001]
[1752569671752,5.8731649,2977.9,2977.8,0.001]
[1752569671951,16.4231649,2977.9,2977.8,0.001]
[1752569672153,0.7672,2977.2,2977.1,0.001]
[1752569672359,9.23006067,2977.2,2977.1,0.001]
[1752569672649,9.67476067,2977.2,2977.1,0.001]
[1752569672968,10.11305095,2977.2,2977.1,0.001]
[1752569674515,20.11305095,2977.2,2977.1,0.001]
[1752569678711,11.20549028,2977.2,2977.1,0.001]
[1752569678939,20.11405095,2977.2,2977.1,0.001]
[1752569679413,16.75519028,2977.2,2977.1,0.001]
[1752569679843,20.11405095,2977.2,2977.1,0.001]
[1752569683152,11.65019028,2977.2,2977.1,0.001]
[1752569683350,16.75519028,2977.2,2977.1,0.001]
[1752569683760,20.11405095,2977.2,2977.1,0.001]
[1752569684071,16.75519028,2977.2,2977.1,0.001]
[1752569684370,20.11405095,2977.2,2977.1,0.001]
[1752569684930,20.66405095,2977.2,2977.1,0.001]
[1752569699183,15.87287435,2977.2,2977.1,0.001]
[1752569699389,20.97787435,2977.2,2977.1,0.001]
[1752569700090,1.47555869,2977.2,2977.1,0.001]
[1752569700261,8.89816067,2977.2,2977.1,0.001]
[1752569700462,15.5393,2977.2,2977.1,0.001]
[1752569701268,18.89816067,2977.2,2977.1,0.001]
[1752569701977,15.5393,2977.2,2977.1,0.001]
[1752569702183,15.85409664,2977.2,2977.1,0.001]
[1752569702369,17.66917692,2977.2,2977.1,0.001]
[1752569702690,21.02803759,2977.2,2977.1,0.001]
[1752569702857,29.09303759,2977.2,2977.1,0.001]
[1752569703393,29.81831199,2977.2,2977.1,0.001]
[1752569703804,26.45945132,2977.2,2977.1,0.001]
[1752569703982,26.02515132,2977.2,2977.1,0.001]
[1752569704671,29.38401199,2977.2,2977.1,0.001]
[1752569705070,29.81831199,2977.2,2977.1,0.001]
[1752569707272,26.02515132,2977.2,2977.1,0.001]
[1752569707471,29.38401199,2977.2,2977.1,0.001]
[1752569707703,29.81831199,2977.2,2977.1,0.001]
[1752569708297,29.81730857,2977.2,2977.1,0.001]
[1752569709081,29.50251535,2977.2,2977.1,0.001]
[1752569709286,29.81730639,2977.2,2977.1,0.001]
[1752569711902,26.45844572,2977.2,2977.1,0.001]
[1752569712105,26.02414572,2977.2,2977.1,0.001]
[1752569712271,29.38300639,2977.2,2977.1,0.001]
[1752569712970,29.81730639,2977.2,2977.1,0.001]
[1752569713208,24.71330639,2977.2,2977.1,0.001]
[1752569713508,29.81730639,2977.2,2977.1,0.001]
[1752569714006,31.16290639,2977.2,2977.1,0.001]
[1752569717168,25.74411535,2977.2,2977.1,0.001]
[1752569717494,31.16293,2977.2,2977.1,0.001]
[1752569718204,26.05893,2977.2,2977.1,0.001]
[1752569718410,31.16293,2977.2,2977.1,0.001]
[1752569719106,26.05893,2977.2,2977.1,0.001]
[1752569719264,31.16293,2977.2,2977.1,0.001]
[1752569721804,31.16288736,2977.2,2977.1,0.001]
[1752569722321,32.06743127,2977.2,2977.1,0.001]
[1752569722524,31.16288593,2977.2,2977.1,0.001]
[1752569723114,32.06934891,2977.2,2977.1,0.001]
[1752569724619,31.16288593,2977.2,2977.1,0.001]
[1752569725428,32.06913224,2977.2,2977.1,0.001]
[1752569726292,31.75436166,2977.2,2977.1,0.001]
[1752569726627,32.06897708,2977.2,2977.1,0.001]
[1752569727044,31.75436166,2977.2,2977.1,0.001]
[1752569727184,32.06895028,2977.2,2977.1,0.001]
[1752569727611,32.06893229,2977.2,2977.1,0.001]
[1752569728970,32.06793229,2977.2,2977.1,0.001]
[1752569732200,31.16168598,2977.2,2977.1,0.001]
[1752569732754,14.89807349,2977.1,2977.0,1e-08]
[1752569732904,22.7965123,2977.1,2977.0,1e-08]
[1752569733306,30.6265123,2977.1,2977.0,1e-08]
[1752569735211,30.31194167,2977.1,2977.0,1e-08]
[1752569735411,30.6264105,2977.1,2977.0,1e-08]
[1752569736347,31.83281039,2977.1,2977.0,1e-08]
[1752569736561,60.6264105,2977.1,2977.0,1e-08]
[1752569736728,75.58956937,2977.1,2977.0,1e-08]
[1752569737618,75.76091127,2977.1,2977.0,1e-08]
[1752569738423,77.5705111,2977.1,2977.0,1e-08]
[1752569739382,13.90998924,2976.2,2976.1,0.04]
[1752569739538,20.81977685,2976.2,2976.1,0.04]
[1752569740837,21.54401129,2976.2,2976.1,0.04]
[1752569741263,20.81977685,2976.2,2976.1,0.04]
[1752569742198,16.44099255,2976.2,2976.1,0.04]
[1752569742496,15.71677685,2976.2,2976.1,0.04]
[1752569742721,21.13403643,2976.2,2976.1,0.04]
[1752569744174,16.03103643,2976.2,2976.1,0.04]
[1752569744358,21.13407433,2976.2,2976.1,0.04]
[1752569746313,18.77728672,2976.2,2976.1,0.4766]
[1752569746800,18.77728672,2976.2,2976.1,0.04]
[1752569748205,3.36050994,2975.8,2975.6,0.3249]
[1752569748357,13.171,2975.7,2975.6,0.7615]
[1752569748557,13.171,2975.7,2975.6,0.3249]
[1752569749299,8.068,2975.7,2975.6,0.7615]
[1752569749599,13.171,2975.7,2975.6,10.60623377]
[1752569752014,8.068,2975.7,2975.6,12.00304227]
[1752569752197,1.62944337,2977.0,2975.7,0.3249]
[1752569752364,16.53026213,2976.9,2976.5,0.3249]
[1752569752566,3.67362414,2976.8,2976.5,0.7615]
[1752569752784,8.46253214,2976.7,2976.3,0.3249]
[1752569752964,3.35970267,2976.5,2976.3,0.3249]
[1752569753167,5.103,2976.4,2976.3,0.3249]
[1752569753371,5.41731066,2976.4,2976.3,0.3249]
[1752569754306,0.1672,2976.3,2976.0,0.3249]
[1752569754483,0.1672,2976.3,2976.1,0.4366]
[1752569754808,6.51526833,2976.4,2976.1,0.4366]
[1752569755017,9.87507119,2976.4,2976.1,0.4366]
[1752569755221,0.168,2976.1,2976.0,0.3249]
[1752569755373,5.27,2976.1,2976.0,0.3249]
[1752569755570,5.27,2976.1,2976.0,0.7615]
[1752569756806,5.27,2976.1,2976.0,4.12171505]
[1752569757008,5.27,2976.1,2976.0,0.7615]
[1752569757196,0.168,2976.1,2976.0,0.7615]
[1752569757399,5.27,2976.1,2976.0,0.7615]
[1752569757601,5.27,2976.1,2975.5,0.001]
[1752569757602,0.833,2976.0,2975.5,0.001]
[1752569757802,3.36064061,2975.7,2975.5,0.001]
[1752569758005,8.46266675,2975.6,2975.5,0.001]
[1752569758205,9.46506675,2975.6,2975.5,0.001]
[1752569759318,8.46266675,2975.6,2975.5,0.001]
[1752569760114,3.36066675,2975.6,2975.5,0.001]
[1752569760326,8.46266675,2975.6,2975.5,0.001]
[1752569760925,9.64498068,2975.6,2975.5,0.001]
[1752569762208,10.07278068,2975.6,2975.5,0.001]
[1752569763401,20.07278068,2975.6,2975.5,0.001]
[1752569763622,20.62278068,2975.6,2975.5,0.001]
[1752569767432,20.50992337,2975.6,2975.5,0.001]
[1752569768219,15.40792337,2975.6,2975.5,0.001]
[1752569768419,10.31494269,2975.6,2975.5,0.001]
[1752569768739,5.41794269,2975.6,2975.5,0.001]
[1752569769241,5.103,2975.6,2975.5,0.001]
[1752569770760,0.31468735,2975.7,2975.5,0.4722]
[1752569771039,13.67490507,2976.0,2975.6,0.4712]
[1752569771260,0.31468735,2975.9,2975.6,0.4712]
[1752569771469,0.31468735,2976.0,2975.5,6.48506702]
[1752569771602,0.31468735,2976.1,2975.8,6.48406702]
[1752569771806,5.103,2976.0,2975.9,0.7961]
[1752569772056,5.103,2976.0,2975.9,3.68522796]
[1752569772639,5.092,2976.0,2975.9,4.15642796]
[1752569774226,5.092,2976.0,2975.9,0.7961]
[1752569775969,0.168,2975.9,2975.6,0.7961]
[1752569776118,5.102,2975.8,2975.6,0.7961]
[1752569776740,5.102,2975.8,2975.6,4.1567246]
[1752569777374,5.102,2975.8,2975.6,0.7961]
[1752569778463,5.102,2975.8,2975.6,0.3249]
[1752569778952,0.168,2975.6,2975.5,0.001]
[1752569779275,5.27,2975.6,2975.5,0.4722]
[1752569779918,5.27,2975.6,2975.5,0.001]
[1752569786166,8.63066675,2975.6,2975.5,0.001]
[1752569786551,5.27,2975.6,2975.5,0.001]
[1752569786867,19.92151139,2975.6,2975.5,0.001]
[1752569788573,19.92051139,2975.6,2975.5,0.001]
[1752569791087,20.47051139,2975.6,2975.5,0.001]
[1752569794536,14.6620797,2975.5,2975.4,1e-08]
[1752569794762,15.41037337,2975.5,2975.4,1e-08]
[1752569794971,18.38975954,2975.5,2975.4,1e-08]
[1752569797187,13.91134453,2975.0,2974.9,1e-08]
[1752569797392,20.13742728,2975.0,2974.9,1e-08]
[1752569797561,19.82324453,2975.0,2974.9,1e-08]
[1752569797766,20.57122305,2975.0,2974.9,1e-08]
[1752569797968,22.157915,2975.0,2974.9,1e-08]
[1752569798757,21.84373648,2975.0,2974.9,1e-08]
[1752569798957,22.15773087,2975.0,2974.9,1e-08]
[1752569799480,22.15754578,2975.0,2974.9,1e-08]
[1752569800276,21.43389847,2975.0,2974.9,1e-08]
[1752569800680,22.15637844,2975.0,2974.9,1e-08]
[1752569800884,21.43389847,2975.0,2974.9,1e-08]
[1752569801085,22.15637792,2975.0,2974.9,1e-08]
[1752569801262,21.43389847,2975.0,2974.9,1e-08]
[1752569802186,21.12008917,2975.0,2974.9,1e-08]
[1752569803060,20.68628917,2975.0,2974.9,1e-08]
[1752569803261,21.12008917,2975.0,2974.9,1e-08]
[1752569803858,16.00908917,2975.0,2974.9,1e-08]
[1752569804091,21.12008917,2975.0,2974.9,1e-08]
[1752569805560,14.77438917,2975.0,2974.9,1e-08]
[1752569805765,19.02234453,2975.0,2974.9,1e-08]
[1752569809201,27.09334453,2975.0,2974.9,1e-08]
[1752569810059,8.071,2975.0,2974.9,0.36490001]
[1752569810287,13.179,2975.0,2974.9,0.81260001]
[1752569810829,13.179,2975.0,2974.9,0.36490001]
[1752569813094,13.179,2975.0,2974.9,0.81260001]
[1752569816849,8.071,2975.0,2974.9,3.72635753]
[1752569817030,8.071,2975.0,2974.9,4.17405753]
[1752569817341,13.176,2975.0,2974.9,4.17405753]
[1752569820237,0.00554949,3067.3,2974.9,4.17405753]
[1752569820238,8.8529,2975.9,2975.5,3.36070277]
[1752569820439,5.105,2975.8,2975.5,6.48406702]
[1752569820607,8.071,2975.9,2975.7,3.36049946]
[1752569820814,5.106,2975.8,2975.7,3.36044635]
[1752569821125,8.071,2975.9,2975.8,3.36044088]
[1752569821326,13.179,2975.9,2975.8,10.3130079]
[1752569821523,13.179,2975.9,2975.8,10.6779079]
[1752569821757,13.179,2975.9,2975.8,0.8334]
[1752569822310,0.168,2975.8,2975.5,3.7256082]
[1752569822508,5.107,2975.7,2975.5,4.1941082]
[1752569822712,5.107,2975.7,2975.5,0.8334]
[1752569822946,5.107,2975.7,2975.3,0.8334]
[1752569823155,0.168,2975.5,2975.0,0.3649]
[1752569823312,5.107,2975.4,2975.0,3.72617143]
[1752569823514,5.107,2975.4,2975.0,4.19467143]
[1752569823812,8.46790751,2975.4,2975.0,0.3649]
[1752569824057,5.107,2975.4,2975.0,0.3649]
[1752569824326,5.5818,2975.4,2975.0,0.3649]
[1752569824747,8.94269969,2975.4,2975.0,0.3649]
[1752569825251,5.5818,2975.4,2975.0,0.3649]
[1752569825556,5.107,2975.4,2975.0,3.7262217]
[1752569825757,5.107,2975.4,2975.0,0.3649]
[1752569826264,8.4679159,2975.4,2975.0,0.3649]
[1752569826626,5.107,2975.4,2975.0,0.3649]
[1752569826931,5.106,2975.3,2975.1,10.31375809]
[1752569827162,5.106,2975.2,2975.1,10.31375809]
[1752569828445,3.36059844,2975.7,2975.2,3.36107258]
[1752569828759,5.105,2975.6,2975.2,3.36111858]
[1752569828956,5.105,2975.5,2975.4,10.20977754]
[1752569829129,5.106,2975.5,2975.4,10.20977754]
[1752569829328,5.106,2975.5,2975.4,10.67827754]
[1752569829848,5.106,2975.5,2975.4,0.3649]
[1752569830049,5.106,2975.5,2975.2,4.42894949]
[1752569830050,0.168,2975.4,2975.2,3.36105351]
[1752569830252,5.106,2975.3,2975.2,3.36105351]
[1752569831768,0.168,2975.2,2975.1,3.72604217]
[1752569832712,0.168,2975.2,2975.1,5.06533391]
[1752569832928,0.168,2975.2,2975.1,5.53383391]
[1752569833319,5.276,2975.2,2975.1,5.53383391]
[1752569834152,0.168,2975.2,2975.1,5.53383391]
[1752569834354,5.276,2975.2,2975.1,5.53383391]
[1752569835365,5.276,2975.2,2975.1,4.19454217]
[1752569836867,5.276,2975.2,2975.1,0.8334]
[1752569837566,5.276,2975.2,2975.1,4.19463155]
[1752569838931,5.276,2975.2,2975.1,3.72613155]
[1752569840441,5.276,2975.2,2975.1,4.19463155]
[1752569841676,5.276,2975.2,2975.0,3.36133362]
[1752569841984,0.168,2975.0,2974.9,3.36140777]
[1752569845180,0.168,2975.0,2974.9,1e-08]
[1752569845341,1.1704,2975.0,2974.9,1e-08]
[1752569846349,0.6428,2975.0,2974.9,1e-08]
[1752569848795,4.00414453,2975.0,2974.9,1e-08]
[1752569849654,4.80914453,2975.0,2974.9,1e-08]
[1752569850393,9.91214453,2975.0,2974.9,1e-08]
[1752569852292,20.46214453,2975.0,2974.9,1e-08]
[1752569852595,22.84448312,2975.0,2974.9,1e-08]
[1752569860671,30.05184201,2975.0,2974.9,1e-08]
[1752569861004,23.88174634,2975.0,2974.9,1e-08]
[1752569861199,23.56777499,2975.0,2974.9,1e-08]
[1752569862321,22.84448312,2975.0,2974.9,1e-08]
[1752569863300,22.84548312,2975.0,2974.9,1e-08]
[1752569863472,16.71668312,2975.0,2974.9,1e-08]
[1752569863672,8.63334453,2975.0,2974.9,1e-08]
[1752569864911,5.272,2975.0,2974.9,1e-08]
[1752569865112,3.52934453,2975.0,2974.9,1e-08]
[1752569865417,8.63334453,2975.0,2974.9,1e-08]
[1752569866614,5.272,2975.0,2974.9,1e-08]
[1752569866785,8.63334453,2975.0,2974.9,1e-08]
[1752569868210,5.272,2975.0,2974.9,1e-08]
[1752569869185,0.168,2975.0,2974.9,1e-08]
[1752569869428,5.272,2975.0,2974.9,1e-08]
[1752569869585,8.63334453,2975.0,2974.9,1e-08]
[1752569869922,5.272,2975.0,2974.9,1e-08]
[1752569870295,8.63334453,2975.0,2974.9,1e-08]
[1752569871242,5.272,2975.0,2974.9,1e-08]
[1752569871927,8.63334453,2975.0,2974.9,1e-08]
[1752569873928,9.08194453,2975.0,2974.9,1e-08]
[1752569875525,5.272,2975.0,2974.9,1e-08]
[1752569876195,0.168,2975.0,2974.9,1e-08]
[1752569876402,5.272,2975.0,2974.9,1e-08]
[1752569876601,5.272,2975.0,2974.9,10.63967808]
[1752569876909,5.272,2975.0,2974.9,11.00457808]
[1752569877739,5.272,2975.0,2974.9,1e-08]
[1752569878839,5.272,2975.0,2974.9,3.81945753]
[1752569880227,5.272,2975.0,2974.9,0.45800001]
[1752569882846,0.168,2975.0,2974.9,3.72635753]
[1752569883020,5.271,2975.0,2974.9,4.18535753]
[1752569883550,5.271,2975.0,2974.9,5.58845601]
[1752569884044,5.271,2975.0,2974.9,2.22699849]
[1752569884549,5.271,2975.0,2974.9,5.58845601]
[1752569885665,5.103,2975.0,2974.9,5.58845601]
[1752569885868,5.105,2975.0,2974.9,5.58845601]
[1752569890775,0.002,2975.0,2974.9,5.58845601]
[1752569890979,5.105,2975.0,2974.9,5.62207058]
[1752569891451,5.105,2975.0,2974.9,5.58845601]
[1752569892467,0.002,2975.0,2974.9,5.62207058]
[1752569892669,5.105,2975.0,2974.9,5.58845601]
[1752569893753,0.002,2975.0,2974.9,5.58845601]
[1752569893958,5.104,2975.0,2974.9,5.58845601]
[1752569895685,5.104,2975.0,2974.9,5.75645601]
[1752569897855,5.104,2975.0,2974.9,15.75645601]
[1752569899198,0.002,2975.0,2974.9,15.75645601]
[1752569899495,5.104,2975.0,2974.9,15.75645601]
[1752569900192,5.103,2975.0,2974.9,15.75645601]
[1752569907181,0.002,2975.0,2974.9,15.75645601]
[1752569915278,0.168,2975.4,2975.3,3.36100561]
[1752569915527,5.1,2975.6,2975.4,3.36089265]
[1752569915674,5.1,2975.6,2975.5,3.3607797]
[1752569916618,5.268,2975.7,2975.6,3.36066675]
[1752569916938,5.268,2975.7,2975.6,9.84473377]
[1752569917278,5.268,2975.7,2975.6,3.36066675]
[1752569917480,5.7141,2975.7,2975.6,3.36066675]
[1752569917712,0.6141,2975.7,2975.6,3.36066675]
[1752569917915,5.7141,2975.7,2975.6,3.36066675]
[1752569920914,6.5268,2975.7,2975.6,3.36066675]
[1752569921218,6.5268,2975.7,2975.5,3.36077202]
[1752569921420,0.4461,2975.6,2975.5,3.36077202]
[1752569925172,0.4461,2975.6,2975.4,3.36084434]
[1752569925383,0.168,2975.5,2975.4,3.36084434]
[1752569925537,0.8045,2975.4,2975.2,3.36111686]
[1752569925868,5.5451,2975.3,2975.2,3.36111686]
[1752569926073,0.168,2975.2,2975.1,3.36119062]
[1752569926362,0.6141,2975.2,2975.0,0.25397742]
[1752569926660,0.4461,2975.1,2975.0,3.36134453]
[1752569927714,0.168,2975.0,2974.9,3.3614008]
[1752569927915,5.267,2975.0,2974.9,3.3614008]
[1752569928157,5.7131,2975.0,2974.9,3.3614008]
[1752569928872,5.7131,2975.0,2974.9,1e-08]
[1752569929053,6.91621,2975.0,2974.9,1e-08]
[1752569929372,10.27755453,2975.0,2974.9,1e-08]
[1752569929661,6.91621,2975.0,2974.9,1e-08]
[1752569933567,6.3449,2975.0,2974.9,3.36145753]
[1752569933867,0.002,2975.1,2975.0,3.36134453]
[1752569934022,5.102,2975.1,2975.0,3.36134453]
[1752569934222,5.5481,2975.1,2974.9,3.361412]
[1752569934427,0.4461,2975.0,2974.9,3.361412]
[1752569934744,1.2636,2975.0,2974.9,3.361412]
[1752569935374,1.2636,2975.0,2974.9,1e-08]
[1752569935668,1.2636,2975.0,2974.9,3.36145753]
[1752569937535,5.1,2975.0,2974.9,3.36145753]
[1752569937918,5.5461,2975.0,2974.9,3.36145753]
[1752569940248,5.5461,2975.0,2974.9,1e-08]
[1752569941541,6.98233,2975.0,2974.9,1e-08]
[1752569942735,10.34367453,2975.0,2974.9,1e-08]
[1752569944826,6.98233,2975.0,2974.9,1e-08]
[1752569946050,1.2511,2975.0,2974.9,1e-08]
[1752569946250,6.3511,2975.0,2974.9,1e-08]
[1752569946464,6.3361,2975.0,2974.9,1e-08]
[1752569947267,0.002,2975.1,2974.9,1e-08]
[1752569947574,5.1,2975.0,2974.9,3.36145753]
[1752569947757,5.1,2975.0,2974.9,1e-08]
[1752569948157,5.5311,2975.0,2974.9,1e-08]
[1752569948644,5.5311,2975.0,2974.9,3.36145753]
[1752569949734,5.1,2975.0,2974.9,3.36145753]
[1752569950375,5.5311,2975.0,2974.9,1e-08]
[1752569951170,5.5311,2975.0,2974.9,3.36145753]
[1752569951676,5.5311,2975.0,2974.9,1e-08]
[1752569951873,5.5331,2975.0,2974.9,1e-08]
[1752569952031,5.5331,2975.0,2974.9,3.36145753]
[1752569952231,5.5331,2975.0,2974.9,1e-08]
[1752569954167,6.87871,2975.0,2974.9,1e-08]
[1752569954330,10.24005453,2975.0,2974.9,1e-08]
[1752569957097,10.79005453,2975.0,2974.9,1e-08]
[1752569958768,5.69005453,2975.0,2974.9,1e-08]
[1752569958970,5.14005453,2975.0,2974.9,1e-08]
[1752569959306,10.24005453,2975.0,2974.9,1e-08]
[1752569968735,0.002,2975.0,2974.9,1e-08]
[1752569969086,5.137,2975.0,2974.9,3.36145753]
[1752569969785,5.137,2975.0,2974.9,1e-08]
[1752569970044,5.137,2975.0,2974.9,3.36145753]
[1752569971235,5.137,2975.0,2974.9,1e-08]
[1752569976831,0.002,2975.0,2974.9,1e-08]
[1752569977032,5.132,2975.0,2974.9,1e-08]
[1752569977242,5.6066,2975.0,2974.9,1e-08]
[1752569980415,5.132,2975.0,2974.9,1e-08]
[1752569980837,5.132,2975.0,2974.9,3.36145753]
[1752569981053,0.002,2975.0,2974.9,3.69760328]
[1752569981241,5.128,2975.0,2974.9,4.14130328]
[1752569982158,0.002,2975.0,2974.9,4.14130328]
[1752569982368,5.128,2975.0,2974.9,4.14130328]
[1752569982522,0.002,2975.0,2974.9,4.50620328]
[1752569982723,5.128,2975.0,2974.9,4.50620328]
[1752569984859,5.128,2975.0,2974.9,4.06250328]
[1752569985633,5.128,2975.0,2974.9,4.50620328]
[1752569989189,0.002,2975.0,2974.9,4.50620328]
[1752569989328,0.002,2975.0,2974.9,4.53981785]
[1752569989666,5.124,2975.0,2974.9,4.53981785]
[1752569995691,5.124,2975.0,2974.9,4.67420328]
[1752570000262,5.124,2975.0,2974.9,4.23050328]
[1752570000599,5.124,2975.0,2974.9,3.69760328]
[1752570000797,5.5864,2975.0,2974.9,3.36145753]
[1752570000999,5.5864,2975.0,2974.9,1e-08]
[1752570001207,5.7544,2975.0,2974.9,3.36145753]
[1752570001565,5.292,2975.0,2974.9,3.36145753]
[1752570002003,5.7544,2975.0,2974.9,3.36145753]
[1752570002710,5.7544,2975.0,2974.9,1e-08]
[1752570003306,5.7544,2975.0,2974.9,3.36145753]
[1752570004305,5.292,2975.0,2974.9,3.36145753]
[1752570004871,5.7544,2975.0,2974.9,3.36145753]
[1752570005306,5.7544,2975.0,2974.9,1e-08]
[1752570006470,5.7544,2975.0,2974.9,3.36145753]
[1752570007518,5.292,2975.0,2974.9,3.36145753]
[1752570008502,0.17,2975.0,2974.9,3.36145753]
[1752570008706,5.283,2975.0,2974.9,3.36145753]
[1752570013427,0.17,2975.0,2974.9,3.36145753]
[1752570013616,5.28,2975.0,2974.9,11.98322721]
[1752570015221,0.17,2975.0,2974.9,11.98322721]
[1752570015372,5.111,2975.0,2974.9,12.15122721]
[1752570017264,5.111,2975.0,2974.9,22.15122721]
[1752570018761,5.10931998,2975.0,2974.9,22.15122721]
[1752570026354,5.10931998,2975.0,2974.9,21.68582721]
[1752570026665,1e-08,2975.1,2975.0,13.72624453]
[1752570026870,1e-08,2975.1,2975.0,16.97421049]
[1752570027071,1e-08,2975.1,2975.0,17.60761049]
[1752570027482,8.237,2975.6,2975.5,3.3607797]
[1752570027632,13.34,2975.6,2975.5,9.87845451]
[1752570027836,13.34,2975.6,2975.5,9.84484672]
[1752570028036,13.34,2975.6,2975.5,11.21195958]
[1752570028740,13.34,2975.6,2975.5,3.3607797]
[1752570028970,14.59,2975.6,2975.5,3.3607797]
[1752570029346,6.521,2975.6,2975.5,3.3607797]
[1752570030373,5.27,2975.6,2975.5,3.3607797]
[1752570030878,5.7209,2975.6,2975.5,3.3607797]
[1752570032945,5.7209,2975.6,2975.5,3.60824418]
[1752570038887,0.168,2975.6,2975.5,10.0923112]
[1752570039089,5.27,2975.6,2975.5,11.48281106]
[1752570040292,5.7209,2975.6,2975.5,4.99874404]
[1752570040478,5.7209,2975.6,2975.5,3.60824418]
[1752570042474,6.5484,2975.6,2975.5,3.60824418]
[1752570043376,6.5484,2975.6,2975.5,0.24746448]
[1752570043689,6.5484,2975.6,2975.5,3.3607797]
[1752570044707,6.5484,2975.6,2975.5,3.61850558]
[1752570045059,5.27,2975.6,2975.5,3.61850558]
[1752570045408,5.27,2975.6,2975.5,4.31644509]
[1752570045805,0.168,2975.6,2975.5,4.31644509]
[1752570045971,5.27,2975.6,2975.5,4.31644509]
[1752570046309,0.168,2975.6,2975.5,4.31644509]
[1752570046508,0.168,2975.6,2975.5,4.35005288]
[1752570046657,5.27,2975.6,2975.5,4.35005288]
[1752570046861,5.27,2975.6,2975.5,4.31644509]
[1752570047077,0.168,2975.6,2975.5,4.31644509]
[1752570047295,5.27,2975.6,2975.5,4.35005288]
[1752570047500,5.27,2975.6,2975.5,4.31644509]
[1752570048520,0.168,2975.6,2975.5,4.31644509]
[1752570048811,5.27,2975.6,2975.5,4.35005288]
[1752570048967,5.27,2975.6,2975.5,4.31644509]
[1752570049664,0.168,2975.6,2975.5,3.61850558]